{"text_format":"1","workbook":"xlsx","n_sheets":4,"sheets":["タスク","事件","オプション","マニュアル"],"not_rendered":{"charts":0,"images":0,"macros":1,"external_links":0,"defined_names":187,"comments":0,"pivot_tables":0},"unopened":[],"bounds":{"document_bytes":16777216,"sheet_cells":100000,"rows_first":2000,"rows_last":500,"rows_between":2000,"halvings":0,"cell_chars":16384,"cell_head_chars":4096},"cells_cut":0,"cells_raw":0,"read":"whole","date_system":"1900"}

{"sheet":"タスク","index":0,"n_rows":7,"n_cols":9,"rows_kept":7,"cut":false,"hidden":false,"merged":[]}
["事件番号","現況区分","事件区分","担当区分","事件呼名","タスク","担当","期限","完了"]
[2100301,{"$f":"INDEX(事件[現況区分],MATCH(タスク[[#This Row],[事件番号]],事件[事件番号],0))","v":"未了"},{"$f":"INDEX(事件[事件区分],MATCH(タスク[[#This Row],[事件番号]],事件[事件番号],0))","v":"個人一般"},{"$f":"INDEX(事件[担当区分],MATCH(タスク[[#This Row],[事件番号]],事件[事件番号],0))","v":"正義太郎"},{"$f":"INDEX(事件[事件呼名],MATCH(タスク[[#This Row],[事件番号]],事件[事件番号],0))","v":"甲山太郎（離婚）"},"委任契約書受領","正義太郎","2021-08-01","2021-08-01"]
[2100301,{"$f":"INDEX(事件[現況区分],MATCH(タスク[[#This Row],[事件番号]],事件[事件番号],0))","v":"未了"},{"$f":"INDEX(事件[事件区分],MATCH(タスク[[#This Row],[事件番号]],事件[事件番号],0))","v":"個人一般"},{"$f":"INDEX(事件[担当区分],MATCH(タスク[[#This Row],[事件番号]],事件[事件番号],0))","v":"正義太郎"},{"$f":"INDEX(事件[事件呼名],MATCH(タスク[[#This Row],[事件番号]],事件[事件番号],0))","v":"甲山太郎（離婚）"},"戸籍取得","事務好子","2021-08-02","済"]
[2100301,{"$f":"INDEX(事件[現況区分],MATCH(タスク[[#This Row],[事件番号]],事件[事件番号],0))","v":"未了"},{"$f":"INDEX(事件[事件区分],MATCH(タスク[[#This Row],[事件番号]],事件[事件番号],0))","v":"個人一般"},{"$f":"INDEX(事件[担当区分],MATCH(タスク[[#This Row],[事件番号]],事件[事件番号],0))","v":"正義太郎"},{"$f":"INDEX(事件[事件呼名],MATCH(タスク[[#This Row],[事件番号]],事件[事件番号],0))","v":"甲山太郎（離婚）"},"打ち合わせ","人権次郎","2021-08-03","2021-08-03"]
[2100302,{"$f":"INDEX(事件[現況区分],MATCH(タスク[[#This Row],[事件番号]],事件[事件番号],0))","v":"未了"},{"$f":"INDEX(事件[事件区分],MATCH(タスク[[#This Row],[事件番号]],事件[事件番号],0))","v":"個人一般"},{"$f":"INDEX(事件[担当区分],MATCH(タスク[[#This Row],[事件番号]],事件[事件番号],0))","v":"正義太郎"},{"$f":"INDEX(事件[事件呼名],MATCH(タスク[[#This Row],[事件番号]],事件[事件番号],0))","v":"甲山太郎（養育費）"},"審判申立書提出","人権次郎","2021-08-08","2021-08-08"]
[2100302,{"$f":"INDEX(事件[現況区分],MATCH(タスク[[#This Row],[事件番号]],事件[事件番号],0))","v":"未了"},{"$f":"INDEX(事件[事件区分],MATCH(タスク[[#This Row],[事件番号]],事件[事件番号],0))","v":"個人一般"},{"$f":"INDEX(事件[担当区分],MATCH(タスク[[#This Row],[事件番号]],事件[事件番号],0))","v":"正義太郎"},{"$f":"INDEX(事件[事件呼名],MATCH(タスク[[#This Row],[事件番号]],事件[事件番号],0))","v":"甲山太郎（養育費）"},"主張書面","正義太郎","2021-08-10","2021-08-10"]
[2100302,{"$f":"INDEX(事件[現況区分],MATCH(タスク[[#This Row],[事件番号]],事件[事件番号],0))","v":"未了"},{"$f":"INDEX(事件[事件区分],MATCH(タスク[[#This Row],[事件番号]],事件[事件番号],0))","v":"個人一般"},{"$f":"INDEX(事件[担当区分],MATCH(タスク[[#This Row],[事件番号]],事件[事件番号],0))","v":"正義太郎"},{"$f":"INDEX(事件[事件呼名],MATCH(タスク[[#This Row],[事件番号]],事件[事件番号],0))","v":"甲山太郎（養育費）"},"経過報告","正義太郎","2021-08-12","2021-08-12"]

{"sheet":"事件","index":1,"n_rows":5,"n_cols":34,"rows_kept":5,"cut":false,"hidden":false,"merged":[]}
["事件番号","現況区分","事件区分","担当区分","事件呼名","依頼人氏名","ふりがな","生年月日","住所","電話番号","相談内容","関係者氏名","相手方氏名","相手方ふりがな","相手方生年月日","相手方住所","相手方電話番号","受任内容","相手方代理人","代理人住所","代理人電話番号","データフォルダ","裁判所名","裁判所事件番号","裁判所事件名","依頼人立場","次回期日","備考","裁判所事件番号2","事件名","依頼人立場3","裁判所電話番号","裁判所FAX番号","備考4"]
[2100201,"終了","刑事","人権次郎","甲川太郎","甲川太郎","こうかわたろう","1962-04-02","000-0000○○市〇〇町○条○丁目○-○","000-0000-0000","窃盗",null,"乙川太郎","おつかわたろう","1962-04-02","000-0000○○市〇〇町○条○丁目○-○","000-0000-0000",null,null,null,null,"X:事件\\個人一般\\甲川太郎\\"]
[2100101,"相談のみ","個人一般","愛情花子","甲野","甲野太郎\n甲野花子","こうのたろう\nこうのはなこ","1962/4/3\n1962/4/4","000-0000○○市〇〇町○条○丁目○-○","000-0000-0000","雇用問題",null,"乙野太郎\n乙野次郎\n乙野三郎","おつのたろう\nおつのじろう\nおつのさぶろう","1962/4/3\n1962/4/4\n1962/4/5","000-0000○○市〇〇町○条○丁目○-○","000-0000-0000"]
[2100301,"未了","個人一般","正義太郎","甲山太郎（離婚）","甲山太郎","こうやまたろう","1962-04-01","000-0000○○市〇〇町○条○丁目○-○","000-0000-0000","離婚","甲山次郎","甲山花子","こうやまはなこ","1962-04-01","000-0000○○市〇〇町○条○丁目○-○","000-0000-0000","離婚請求","乙野花子","000-0000○○市〇〇町○条○丁目○-○","0000-00-0000","X:事件\\個人一般\\甲山太郎\\","旭川家庭裁判所","令和3年(X)第1号","離婚請求事件","原告","2021/8/6  10:00\n2021/9/6 11:00"]
[2100302,"未了","個人一般","正義太郎","甲山太郎（養育費）","甲山太郎","こうやまたろう","1962-04-01","000-0000○○市〇〇町○条○丁目○-○","000-0000-0000","養育費","乙山次郎","乙山花子","おつやまはなこ","1962-04-01","000-0000○○市〇〇町○条○丁目○-○","000-0000-0000","養育費請求","乙野花子","000-0000○○市〇〇町○条○丁目○-○","0000-00-0000","X:事件\\個人一般\\甲山太郎\\","旭川家庭裁判所","令和3年(X)第2号","養育費請求事件","被告"]

{"sheet":"オプション","index":2,"n_rows":10,"n_cols":4,"rows_kept":10,"cut":false,"hidden":false,"merged":[[0,2,0,3]]}
["設定","事件データファイル","C:\\Users\\kagem\\Desktop\\事件データベースVer100.xlsm"]
[]
[null,"リスト選択値","担当"]
[null,null,"正義太郎"]
[null,null,"人権次郎"]
[null,null,"愛情花子"]
[null,null,"事務好子"]
[]
["コマンド","事件データの読込","実行","事件データファイルのデータで「事件」シートを書き換えます。"]
[null,null,null,"「タスク」シートに新規事件を追加し、並び替えと書式設定を行います。"]

{"sheet":"マニュアル","index":3,"n_rows":28,"n_cols":11,"rows_kept":28,"cut":false,"hidden":false,"merged":[]}
["タスク管理システム"]
[]
[null,"使用法"]
[null,null,"全般","シートを切り替えると、同じ事件やタスクが選択されます。対象としている事件番号やタスク番号は、セルを選択する都度に更新されます。"]
[]
[null,null,"タスク","シートを開くと、対象としている事件番号のセルが自動的に選択されます。"]
[null,null,null,"入力済みの事件番号をダブルクリックすると、その事件番号の最終行の下に新しい行を追加し、事件番号を自動入力します。"]
[null,null,null,"「現況区分」「事件区分」「担当区分」「依頼者名」は、事件データの内容が自動表示されます。"]
[null,null,null,"「オプション」シートの「事件データの読込」を実行すると、新規事件データを追加し、並び替えと書式設定を行います。"]
[null,null,null,null,"並び替えの優先順は、「現況区分」「事件区分」「事件番号」「完了」「期限」に設定されています。"]
[null,null,null,"「担当」は、リストから選択できます。元の値は、オプションに設定されています。"]
[null,null,null,"「期限」および「完了」のセルをダブルクリックすると、カレンダー入力フォームが表示されます。"]
[null,null,null,null,"「済」ボタンを押すと、「済」が入力されます。"]
[]
[null,null,"事件","シートを開くと、対象としている事件番号のセルが自動的に選択されます。"]
[null,null,null,"このシートに修正・追加を行っても、事件データベースには反映されません。"]
[null,null,null,"「オプション」シートの「事件データの読込」を実行すると、事件データベースの内容で更新されます。"]
[]
[null,null,"オプション","事件データベースのファイルを指定できます。"]
[null,null,null,"リストの選択値の設定ができます。"]
[]
[null,null,null,"「事件データの読込」を実行すると、以下の処理を行います。"]
[null,null,null,null,"「事件」シートのデータを「事件データベース」の内容で更新する。"]
[null,null,null,null,"「タスク」シートに「事件」シートの新規事件を追加する。"]
[null,null,null,null,"「タスク」シートの並び替えと書式設定を行う。"]
[]
[null,"変更履歴"]
[null,null,"2021-11-05","新規作成",null,null,null,null,null,null,"Ver1.00"]